[Event "46th OKU-B 2019"]
[Site "Utrecht"]
[Date "2019.06.02"]
[Round "5.6"]
[White "Lutz, Chris"]
[Black "Neisingh, Nils"]
[Result "0-1"]
[ECO "B56"]
[WhiteElo "1800"]
[BlackElo "1710"]
[Annotator "NA"]
[PlyCount "104"]
[EventDate "2019.05.31"]
[EventType "swiss"]
[EventCountry "NED"]
[SourceTitle "playchess.com"]
[Source "ChessBase"]
[SourceQuality "1"]
[TimeControl "6600+10"]

1. e4 {[%emt 0:00:00]} c5 {[%emt 0:00:00]} 2. Nf3 {[%emt 0:00:00]} d6 {[%emt 0:00:00]} 3. d4 {[%emt 0:00:05]} cxd4 {[%emt 0:00:00]} 4. Nxd4 {[%emt 0:00:08]} Nf6 {[%emt 0:00:02]} 5. Nc3 {[%emt 0:00:11]} a6 {[%emt 0:00:03]} 6. Be3 {[%emt 0:00:16]} e5 {[%emt 0:00:04]} 7. Nb3 {[%emt 0:00:08]} Be6 $11 {[%emt 0:00:10]} 8. f3 {[%emt 0:00:07]} Be7 {[%emt 0:00:05]} 9. Qd2 {[%emt 0:00:08]} Nc6 {[%emt 0:00:59]} 10. g4 {[%emt 0:00:36]} O-O {[%emt 0:00:11]} 11. O-O-O {[%emt 0:00:08]} Nd7 {[%emt 0:01:27]} 12. h4 {[%emt 0:03:09]} b5 {[%emt 0:02:09]} 13. Nd5 {[%emt 0:10:03]} Bxd5 {[%emt 0:06:06]} 14. exd5 {[%emt 0:00:27]} Na7 {[%emt 0:02:00]} 15. g5 {[%emt 0:02:38]} Nb6 {[%emt 0:02:20]} 16. Qf2 {[%emt 0:06:50]} Rb8 {[%emt 0:01:51]} 17. Nd2 {[%emt 0:13:44]} Qc7 {[%emt 0:01:17]} 18. Ne4 {[%emt 0:00:43]} Rb7 {[%emt 0:03:44]} 19. Kb1 {[%emt 0:02:31]} Nc4 {[%emt 0:01:41]} 20. Bxc4 {[%emt 0:02:07]} bxc4 {[%emt 0:01:13]} 21. Ka1 {[%emt 0:03:57]} Rfb8 {[%emt 0:03:39]} 22. Rb1 {[%emt 0:01:19]} Nb5 {[%emt 0:04:42]} 23. c3 {[%emt 0:03:03]} a5 {[%emt 0:04:23]} 24. f4 {[%emt 0:01:57]} a4 {[%emt 0:11:35]} 25. fxe5 {[%emt 0:01:06]} dxe5 {[%emt 0:01:56]} 26. Nf6+ {[%emt 0:03:09]} Bxf6 {[%emt 0:31:37]} 27. gxf6 {[%emt 0:00:34]} Qd6 {[%emt 0:06:15]} 28. Rbg1 {[%emt 0:02:06]} g6 {[%emt 0:00:18]} 29. Bc5 {[%emt 0:03:14]} Qa6 {[%emt 0:02:06]} 30. a3 {[%emt 0:01:31]} Nd6 {[%emt 0:01:22]} 31. h5 {[%emt 0:02:02]} Rxb2 {[%emt 0:02:12]} 32. Qxb2 {[%emt 0:01:57]} Rxb2 {[%emt 0:00:10]} 33. Kxb2 {[%emt 0:00:25]} Ne4 {[%emt 0:00:43]} 34. Bb4 {[%emt 0:00:46]} Qxf6 {[%emt 0:01:57]} 35. Rf1 {[%emt 0:01:20]} Qd8 {[%emt 0:03:07]} 36. hxg6 {[%emt 0:00:59]} hxg6 {[%emt 0:00:59]} 37. Rh2 {[%emt 0:03:08]} Qxd5 {[%emt 0:00:43]} 38. Rfh1 {[%emt 0:00:45]} Nc5 {[%emt 0:00:51]} 39. Rh8+ {[%emt 0:02:16]} Kg7 {[%emt 0:00:06]} 40. R8h7+ {[%emt 0:01:54]} Kg8 {[%emt 0:03:04]} 41. Rh8+ {[%emt 0:00:41]} Kg7 {[%emt 0:00:02]} 42. R8h7+ {[%emt 0:00:28]} Kf6 {[%emt 0:03:38]} 43. Rf1+ {[%emt 0:09:50]} Ke6 {[%emt 0:00:37]} 44. Bxc5 {[%emt 0:03:41]} Qd2+ {[%emt 0:01:02]} 45. Ka1 {[%emt 0:01:25]} Qxc3+ {[%emt 0:00:07]} 46. Ka2 {[%emt 0:00:36]} Qc2+ {[%emt 0:01:49]} 47. Ka1 {[%emt 0:00:26]} Qc3+ {[%emt 0:01:02]} 48. Ka2 {[%emt 0:00:12]} Qd2+ {[%emt 0:00:04]} 49. Ka1 {[%emt 0:00:24]} c3 {[%emt 0:02:12]} 50. Rb1 {[%emt 0:02:56]} c2 {[%emt 0:00:02]} 51. Rb6+ {[%emt 0:01:00]} Kd5 {[%emt 0:00:01]} 52. Rd6+ {[%emt 0:03:27]} Kxc5 {[%emt 0:00:01]} 0-1

[Event "46th OKU-B 2019"]
[Site "Utrecht"]
[Date "2019.06.02"]
[Round "6.1"]
[White "Flohr, Ron"]
[Black "De Dreu, Dies"]
[Result "1/2-1/2"]
[ECO "D00"]
[WhiteElo "1883"]
[BlackElo "1761"]
[Annotator "NA"]
[PlyCount "30"]
[EventDate "2019.05.31"]
[EventType "swiss"]
[EventCountry "NED"]
[SourceTitle "playchess.com"]
[Source "ChessBase"]
[SourceQuality "1"]
[TimeControl "6600+10"]

1. d4 {[%emt 0:00:00]} d5 {[%emt 0:00:25]} 2. e3 {[%emt 0:00:06]} Nf6 {[%emt 0:00:56]} 3. Bd3 {[%emt 0:00:26]} Nc6 {[%emt 0:08:04]} 4. f4 {[%emt 0:04:44]} Nb4 {[%emt 0:11:44]} 5. a3 {[%emt 0:02:33]} Nxd3+ {[%emt 0:00:17]} 6. cxd3 {[%emt 0:00:12]} Bd7 {[%emt 0:11:26]} 7. Nf3 {[%emt 0:01:50]} Bg4 {[%emt 0:02:52]} 8. O-O {[%emt 0:00:55]} e6 {[%emt 0:00:40]} 9. Qb3 {[%emt 0:05:04]} Bxf3 {[%emt 0:02:13]} 10. Rxf3 {[%emt 0:00:15]} b6 {[%emt 0:04:18]} 11. Qb5+ {[%emt 0:02:00]} Qd7 {[%emt 0:08:12]} 12. Qxd7+ {[%emt 0:02:08]} Nxd7 {[%emt 0:01:14]} 13. e4 {[%emt 0:01:06]} dxe4 {[%emt 0:02:59]} 14. dxe4 {[%emt 0:00:16]} Be7 {[%emt 0:05:26]} 15. Nc3 {[%emt 0:00:31]} O-O {[%emt 0:10:13]} 1/2-1/2

[Event "46th OKU-B 2019"]
[Site "Utrecht"]
[Date "2019.06.02"]
[Round "6.2"]
[White "Neisingh, Nils"]
[Black "Van de Lagemaat, Arend"]
[Result "1/2-1/2"]
[ECO "B06"]
[WhiteElo "1710"]
[BlackElo "1855"]
[Annotator "NA"]
[PlyCount "76"]
[EventDate "2019.05.31"]
[EventType "swiss"]
[EventCountry "NED"]
[SourceTitle "playchess.com"]
[Source "ChessBase"]
[SourceQuality "1"]
[TimeControl "6600+10"]

1. e4 {[%emt 0:00:00]} c5 {[%emt 0:00:00]} 2. Nf3 {[%emt 0:00:00]} g6 {[%emt 0:00:00]} 3. d4 {[%emt 0:00:00]} cxd4 {[%emt 0:00:00]} 4. Nxd4 {[%emt 0:00:05]} Bg7 {[%emt 0:00:12]} 5. f4 {[%emt 0:01:01]} Nc6 {[%emt 0:01:34]} 6. Nf3 {[%emt 0:01:08]} d6 {[%emt 0:03:04]} 7. Bd3 {[%emt 0:00:26]} Nf6 {[%emt 0:01:56]} 8. O-O {[%emt 0:00:08]} Qb6+ {[%emt 0:02:06]} 9. Kh1 {[%emt 0:00:15]} Ng4 {[%emt 0:01:45]} 10. Qe1 {[%emt 0:03:38]} Bxb2 {[%emt 0:02:47]} 11. Bxb2 {[%emt 0:00:28]} Qxb2 {[%emt 0:00:06]} 12. Nc3 {[%emt 0:01:11]} Qb6 {[%emt 0:05:18]} 13. Nd5 {[%emt 0:02:40]} Qd8 {[%emt 0:00:05]} 14. f5 {[%emt 0:04:12]} Nge5 {[%emt 0:10:03]} 15. Bb5 {[%emt 0:04:36]} Bd7 {[%emt 0:03:42]} 16. Qh4 {[%emt 0:05:05]} a6 {[%emt 0:12:00]} 17. Nxe5 {[%emt 0:03:36]} Nxe5 {[%emt 0:05:15]} 18. Bxd7+ {[%emt 0:00:13]} Kxd7 {[%emt 0:02:55]} 19. Rab1 {[%emt 0:02:20]} b5 {[%emt 0:01:26]} 20. a4 {[%emt 0:02:08]} Rb8 {[%emt 0:05:03]} 21. axb5 {[%emt 0:02:04]} g5 {[%emt 0:09:51]} 22. Qxg5 {[%emt 0:07:09]} f6 {[%emt 0:00:18]} 23. Qe3 {[%emt 0:01:01]} axb5 {[%emt 0:01:26]} 24. Qa7+ {[%emt 0:02:12]} Ke8 {[%emt 0:01:26]} 25. Rxb5 {[%emt 0:02:08]} Rxb5 {[%emt 0:00:02]} 26. Nc7+ {[%emt 0:00:04]} Kf7 {[%emt 0:01:23]} 27. Nxb5 {[%emt 0:00:05]} Rg8 {[%emt 0:04:35]} 28. Rd1 {[%emt 0:02:08]} Qd7 {[%emt 0:01:51]} 29. Qa2+ {[%emt 0:04:10]} Kg7 {[%emt 0:00:19]} 30. Nd4 {[%emt 0:00:40]} Qb7 {[%emt 0:02:00]} 31. Ne6+ {[%emt 0:00:47]} Kh8 {[%emt 0:00:11]} 32. Qd5 {[%emt 0:03:50]} Qxd5 {[%emt 0:01:52]} 33. Rxd5 {[%emt 0:01:21]} Rc8 {[%emt 0:02:05]} 34. Rb5 {[%emt 0:03:30]} h5 {[%emt 0:00:45]} 35. Rb2 {[%emt 0:09:20]} Nd3 {[%emt 0:02:02]} 36. Ra2 {[%emt 0:01:06]} Nf2+ {[%emt 0:02:19]} 37. Kg1 {[%emt 0:00:01]} Nxe4 {[%emt 0:00:10]} 38. Nf4 {[%emt 0:02:10]} Kg7 {[%emt 0:05:22]} 1/2-1/2

[Event "46th OKU-B 2019"]
[Site "Utrecht"]
[Date "2019.06.02"]
[Round "6.3"]
[White "Krouwel, Robert"]
[Black "Van Aken, Jelmer"]
[Result "1/2-1/2"]
[ECO "A47"]
[WhiteElo "1841"]
[BlackElo "1698"]
[Annotator "NA"]
[PlyCount "79"]
[EventDate "2019.05.31"]
[EventType "swiss"]
[EventCountry "NED"]
[SourceTitle "playchess.com"]
[Source "ChessBase"]
[SourceQuality "1"]
[TimeControl "6600+10"]

1. d4 {[%emt 0:00:00]} Nf6 {[%emt 0:00:00]} 2. Nf3 {[%emt 0:00:00]} e6 {[%emt 0:00:00]} 3. e3 {[%emt 0:00:02]} b6 {[%emt 0:00:41]} 4. Nbd2 {[%emt 0:00:19]} Bb7 {[%emt 0:00:10]} 5. Bd3 {[%emt 0:00:24]} d6 {[%emt 0:02:18]} 6. c3 {[%emt 0:00:43]} Nbd7 {[%emt 0:00:48]} 7. O-O {[%emt 0:00:20]} Be7 {[%emt 0:00:49]} 8. Re1 {[%emt 0:00:20]} c5 {[%emt 0:02:15]} 9. e4 {[%emt 0:01:19]} O-O {[%emt 0:00:45]} 10. Nf1 {[%emt 0:03:26]} d5 {[%emt 0:06:06]} 11. Ng3 {[%emt 0:00:55]} dxe4 {[%emt 0:00:50]} 12. Nxe4 {[%emt 0:00:06]} Qc7 {[%emt 0:01:19]} 13. Bg5 {[%emt 0:02:28]} Rfd8 {[%emt 0:05:59]} 14. dxc5 {[%emt 0:16:00]} Nxc5 {[%emt 0:04:44]} 15. Nxc5 {[%emt 0:01:16]} Qxc5 {[%emt 0:00:35]} 16. Be3 {[%emt 0:00:47]} Qc7 {[%emt 0:06:21]} 17. Qe2 {[%emt 0:00:22]} Ng4 {[%emt 0:03:31]} 18. h3 {[%emt 0:00:55]} Nxe3 {[%emt 0:00:35]} 19. Qxe3 {[%emt 0:00:12]} Bc5 {[%emt 0:01:19]} 20. Qe2 {[%emt 0:00:36]} Qg3 {[%emt 0:04:38]} 21. Rad1 {[%emt 0:02:09]} Bxf3 {[%emt 0:00:59]} 22. Qxf3 {[%emt 0:00:12]} Qxf3 {[%emt 0:04:14]} 23. gxf3 {[%emt 0:00:06]} g6 {[%emt 0:03:03]} 24. Kg2 {[%emt 0:00:54]} Kf8 {[%emt 0:02:51]} 25. f4 {[%emt 0:02:09]} Rac8 {[%emt 0:03:45]} 26. Ba6 {[%emt 0:00:17]} Rb8 {[%emt 0:00:29]} 27. Kf3 {[%emt 0:00:59]} Ke7 {[%emt 0:01:23]} 28. Bc4 {[%emt 0:01:08]} Kf6 {[%emt 0:04:09]} 29. Bb3 {[%emt 0:00:32]} b5 {[%emt 0:02:39]} 30. Bc2 {[%emt 0:02:24]} b4 {[%emt 0:03:42]} 31. cxb4 {[%emt 0:02:59]} Bxb4 {[%emt 0:00:32]} 32. Rxd8 {[%emt 0:00:48]} Rxd8 {[%emt 0:00:09]} 33. Re4 {[%emt 0:00:37]} Bc5 {[%emt 0:04:11]} 34. Re2 {[%emt 0:01:05]} Bb6 {[%emt 0:04:07]} 35. a4 {[%emt 0:03:26]} Rd5 {[%emt 0:01:49]} 36. b4 {[%emt 0:04:35]} Rd4 {[%emt 0:02:19]} 37. Re4 {[%emt 0:00:17]} Rd2 {[%emt 0:01:48]} 38. Re2 {[%emt 0:00:06]} Rxe2 {[%emt 0:03:37]} 39. Kxe2 {[%emt 0:00:10]} h6 {[%emt 0:02:28]} 40. Kf3 {[%emt 0:02:08] Ke5 [%emt 00:01:50] Ke4+ [%clk 00:59:09]} 1/2-1/2

[Event "46th OKU-B 2019"]
[Site "Utrecht"]
[Date "2019.06.02"]
[Round "6.4"]
[White "Wallace, Mitchel"]
[Black "De Vroome, Ernest"]
[Result "0-1"]
[ECO "B40"]
[WhiteElo "1798"]
[BlackElo "1893"]
[Annotator "NA"]
[PlyCount "88"]
[EventDate "2019.05.31"]
[EventType "swiss"]
[EventCountry "NED"]
[SourceTitle "playchess.com"]
[Source "ChessBase"]
[SourceQuality "1"]
[TimeControl "6600+10"]

1. e4 {[%emt 0:00:00]} c5 {[%emt 0:00:02]} 2. c3 {[%emt 0:00:21]} Nf6 {[%emt 0:00:28]} 3. d3 {[%emt 0:01:14]} Nc6 {[%emt 0:00:35]} 4. Nf3 {[%emt 0:00:30]} e6 {[%emt 0:02:43]} 5. Be2 {[%emt 0:01:39]} Be7 {[%emt 0:01:39]} 6. Nbd2 {[%emt 0:04:05]} Qc7 {[%emt 0:02:16]} 7. h3 {[%emt 0:05:28]} d5 {[%emt 0:03:55]} 8. O-O {[%emt 0:03:30]} O-O {[%emt 0:02:18]} 9. Re1 $15 {[%emt 0:08:34]} b6 {[%emt 0:10:40]} 10. Qc2 {[%emt 0:09:58]} Bb7 {[%emt 0:02:09]} 11. Nf1 {[%emt 0:10:27]} e5 {[%emt 0:08:20]} 12. g4 {[%emt 0:09:54]} dxe4 {[%emt 0:09:11]} 13. dxe4 {[%emt 0:00:16]} Nd8 {[%emt 0:01:30]} 14. Ng3 {[%emt 0:00:29]} Ne6 {[%emt 0:04:02]} 15. Ng5 {[%emt 0:11:57]} Nf4 {[%emt 0:08:26]} 16. Bf1 {[%emt 0:12:58]} h6 {[%emt 0:02:21]} 17. Nf3 {[%emt 0:06:17]} Rad8 {[%emt 0:05:26]} 18. g5 {[%emt 0:03:38]} hxg5 {[%emt 0:00:47]} 19. Nxg5 {[%emt 0:00:16]} N6h5 {[%emt 0:05:08]} 20. Nxf7 {[%emt 0:03:06]} Kxf7 {[%emt 0:02:23]} 21. Bxf4 {[%emt 0:06:45]} Nxf4 {[%emt 0:00:36]} 22. Qb3+ {[%emt 0:01:17]} Kg6 {[%emt 0:01:56]} 23. Nf5 {[%emt 0:02:52]} Bc8 {[%emt 0:06:21]} 24. Ne3 {[%emt 0:02:00]} Be6 {[%emt 0:01:16]} 25. Nd5 {[%emt 0:01:26]} Bxd5 {[%emt 0:03:24]} 26. exd5 {[%emt 0:00:10]} Rxd5 {[%emt 0:01:22]} 27. Re4 {[%emt 0:01:24]} Rd2 {[%emt 0:02:51]} 28. Rd1 {[%emt 0:01:39]} Rxd1 {[%emt 0:08:26]} 29. Qxd1 {[%emt 0:00:08]} Rh8 {[%emt 0:02:14]} 30. Qg4+ {[%emt 0:00:21]} Kf7 {[%emt 0:00:53]} 31. Qf5+ {[%emt 0:00:22]} Bf6 {[%emt 0:00:43]} 32. Bc4+ {[%emt 0:00:13]} Kf8 {[%emt 0:01:48]} 33. Re3 {[%emt 0:01:21]} Rh5 {[%emt 0:00:51]} 34. Qe4 {[%emt 0:00:12]} Qd8 {[%emt 0:01:58]} 35. Bb3 {[%emt 0:00:12]} Qe8 {[%emt 0:00:29]} 36. Kh2 {[%emt 0:00:17]} Qd7 {[%emt 0:00:52]} 37. Qf3 {[%emt 0:00:35]} Rg5 {[%emt 0:00:33]} 38. Qa8+ {[%emt 0:00:09]} Bd8 {[%emt 0:00:19]} 39. Qf3 {[%emt 0:00:15]} Rg2+ {[%emt 0:01:15]} 40. Kh1 {[%emt 0:00:00]} Bf6 {[%emt 0:00:40]} 41. Qa8+ {[%emt 0:00:04]} Ke7 {[%emt 0:00:19]} 42. Qg8 {[%emt 0:00:18]} Rxf2 {[%emt 0:00:49]} 43. Qh7 {[%emt 0:00:22]} Rf1+ {[%emt 0:00:18]} 44. Kh2 {[%emt 0:00:01]} Qd2+ {[%emt 0:00:15]} 0-1

[Event "46th OKU-B 2019"]
[Site "Utrecht"]
[Date "2019.06.02"]
[Round "6.5"]
[White "Boittin, Pascal"]
[Black "Scholten, Marcel"]
[Result "0-1"]
[ECO "C42"]
[WhiteElo "1838"]
[BlackElo "1747"]
[Annotator "NA"]
[PlyCount "62"]
[EventDate "2019.05.31"]
[EventType "swiss"]
[EventCountry "NED"]
[SourceTitle "playchess.com"]
[Source "ChessBase"]
[SourceQuality "1"]
[TimeControl "6600+10"]

1. e4 {[%emt 0:00:00]} e5 {[%emt 0:00:00]} 2. Nf3 {[%emt 0:00:02]} Nf6 {[%emt 0:00:00]} 3. Nxe5 {[%emt 0:00:39]} d6 {[%emt 0:00:00]} 4. Nf3 {[%emt 0:00:38]} Nxe4 {[%emt 0:00:03]} 5. d4 {[%emt 0:03:22]} d5 {[%emt 0:00:04]} 6. Bd3 {[%emt 0:02:50]} Bf5 {[%emt 0:00:25]} 7. O-O {[%emt 0:00:18]} Be7 {[%emt 0:00:17]} 8. Re1 {[%emt 0:02:33]} O-O {[%emt 0:00:45]} 9. c4 {[%emt 0:00:10]} c6 {[%emt 0:00:05]} 10. Nc3 {[%emt 0:00:09]} Bb4 {[%emt 0:04:35]} 11. Qc2 {[%emt 0:03:21]} Re8 {[%emt 0:03:14]} 12. Bf4 {[%emt 0:04:22]} Nd7 {[%emt 0:04:05]} 13. Rad1 {[%emt 0:11:30]} Ndf6 {[%emt 0:03:28]} 14. c5 {[%emt 0:01:46]} Nxc3 {[%emt 0:02:07]} 15. bxc3 {[%emt 0:00:15]} Bxd3 {[%emt 0:00:20]} 16. Qxd3 {[%emt 0:00:24]} Ba5 {[%emt 0:00:29]} 17. Bg5 {[%emt 0:05:09]} Rxe1+ {[%emt 0:04:57]} 18. Rxe1 {[%emt 0:09:28]} h6 {[%emt 0:00:43]} 19. Bxf6 {[%emt 0:00:10]} Qxf6 {[%emt 0:02:40]} 20. Qe3 {[%emt 0:01:12]} Bc7 {[%emt 0:03:56]} 21. Qe7 {[%emt 0:05:12]} Qxe7 {[%emt 0:00:58]} 22. Rxe7 {[%emt 0:00:30]} Rc8 {[%emt 0:00:12]} 23. Ne5 {[%emt 0:09:03]} Bxe5 {[%emt 0:06:17]} 24. dxe5 {[%emt 0:03:23]} Rb8 {[%emt 0:01:06]} 25. f4 {[%emt 0:01:04]} b6 {[%emt 0:02:17]} 26. Rxa7 {[%emt 0:02:22]} bxc5 {[%emt 0:00:12]} 27. Ra5 {[%emt 0:14:55]} d4 {[%emt 0:02:47]} 28. cxd4 {[%emt 0:08:03]} cxd4 {[%emt 0:00:41]} 29. Rc5 {[%emt 0:00:38]} d3 {[%emt 0:03:44]} 30. Rxc6 {[%emt 0:00:27]} d2 {[%emt 0:00:27]} 31. Rd6 {[%emt 0:00:40]} Rb1+ {[%emt 0:00:05]} 0-1

[Event "46th OKU-B 2019"]
[Site "Utrecht"]
[Date "2019.06.02"]
[Round "6.6"]
[White "Waardenburg, Feline"]
[Black "Klein, Jorik"]
[Result "1/2-1/2"]
[ECO "E81"]
[WhiteElo "1761"]
[BlackElo "1839"]
[Annotator "NA"]
[PlyCount "55"]
[EventDate "2019.05.31"]
[EventType "swiss"]
[EventCountry "NED"]
[SourceTitle "playchess.com"]
[Source "ChessBase"]
[SourceQuality "1"]
[TimeControl "6600+10"]

1. d4 {[%emt 0:00:00]} Nf6 {[%emt 0:00:00]} 2. c4 {[%emt 0:00:00]} g6 {[%emt 0:00:00]} 3. Nc3 {[%emt 0:00:09]} Bg7 {[%emt 0:00:04]} 4. e4 {[%emt 0:00:17]} d6 {[%emt 0:00:05]} 5. f3 {[%emt 0:00:16]} O-O {[%emt 0:00:19]} 6. Be3 {[%emt 0:01:34]} Nbd7 {[%emt 0:11:03]} 7. Nh3 {[%emt 0:03:28]} c5 {[%emt 0:00:45]} 8. d5 {[%emt 0:02:40]} a6 {[%emt 0:08:29]} 9. Be2 {[%emt 0:03:43]} Rb8 {[%emt 0:07:44]} 10. O-O {[%emt 0:01:50]} Qa5 {[%emt 0:10:12]} 11. Nf2 {[%emt 0:07:52]} b5 {[%emt 0:02:51]} 12. cxb5 {[%emt 0:02:35]} axb5 {[%emt 0:00:18]} 13. a3 {[%emt 0:00:24]} Ba6 {[%emt 0:07:07]} 14. Qd2 {[%emt 0:03:06]} Ra8 {[%emt 0:09:56]} 15. b4 {[%emt 0:05:45]} Qb6 {[%emt 0:03:48]} 16. bxc5 {[%emt 0:01:14]} Nxc5 {[%emt 0:01:16]} 17. Rab1 {[%emt 0:00:26]} Qa5 {[%emt 0:01:50]} 18. Rfc1 {[%emt 0:05:02]} Nfd7 {[%emt 0:02:52]} 19. Bh6 {[%emt 0:04:02]} Rfc8 {[%emt 0:07:57]} 20. Bxg7 {[%emt 0:02:26]} Kxg7 {[%emt 0:00:05]} 21. Qd4+ {[%emt 0:01:03]} f6 {[%emt 0:01:00]} 22. Qb4 {[%emt 0:06:36]} Qxb4 {[%emt 0:04:18]} 23. axb4 {[%emt 0:00:25]} Na4 {[%emt 0:00:06]} 24. Nxa4 {[%emt 0:16:30]} bxa4 {[%emt 0:02:01]} 25. b5 {[%emt 0:02:50]} Bb7 {[%emt 0:00:12]} 26. Nd3 {[%emt 0:06:59]} Kf7 {[%emt 0:04:02]} 27. Nb4 {[%emt 0:02:07]} Nc5 {[%emt 0:03:44]} 28. Bc4 {[%emt 0:01:29]} 1/2-1/2

[Event "46th OKU-B 2019"]
[Site "Utrecht"]
[Date "2019.06.02"]
[Round "6.7"]
[White "Schoenmakers, Nico"]
[Black "Van Nie, Pjotr"]
[Result "0-1"]
[ECO "B27"]
[WhiteElo "1778"]
[BlackElo "1487"]
[Annotator "NA"]
[PlyCount "94"]
[EventDate "2019.05.31"]
[EventType "swiss"]
[EventCountry "NED"]
[SourceTitle "playchess.com"]
[Source "ChessBase"]
[SourceQuality "1"]
[TimeControl "6600+10"]

1. e4 {[%emt 0:00:00]} g6 {[%emt 0:00:00]} 2. d4 {[%emt 0:00:06]} Bg7 {[%emt 0:00:00]} 3. Nf3 {[%emt 0:00:15]} c5 {[%emt 0:00:08]} 4. dxc5 {[%emt 0:03:19]} Qa5+ {[%emt 0:00:15]} 5. Bd2 {[%emt 0:00:34]} Qxc5 {[%emt 0:00:22]} 6. Bc3 {[%emt 0:00:03]} Nf6 {[%emt 0:01:50]} 7. Bd3 {[%emt 0:01:41]} O-O {[%emt 0:02:14]} 8. O-O {[%emt 0:00:02]} d6 {[%emt 0:00:46]} 9. Nbd2 {[%emt 0:00:53]} Bg4 {[%emt 0:02:01]} 10. h3 {[%emt 0:00:12]} Bd7 {[%emt 0:03:37]} 11. Nb3 {[%emt 0:01:48]} Qc8 {[%emt 0:01:24]} 12. Re1 {[%emt 0:02:47]} Nc6 {[%emt 0:00:42]} 13. Bf1 {[%emt 0:01:56]} a6 {[%emt 0:02:45]} 14. a4 {[%emt 0:00:16]} Rb8 {[%emt 0:01:39]} 15. e5 {[%emt 0:02:48]} dxe5 {[%emt 0:01:11]} 16. Nxe5 {[%emt 0:00:21]} Nxe5 {[%emt 0:01:33]} 17. Bxe5 {[%emt 0:00:24]} Ra8 {[%emt 0:00:13]} 18. c3 {[%emt 0:02:25]} Rd8 {[%emt 0:00:44]} 19. Qe2 {[%emt 0:01:07]} Bc6 {[%emt 0:05:48]} 20. Nd4 {[%emt 0:00:14]} Bd7 {[%emt 0:01:48]} 21. a5 {[%emt 0:00:43]} Qc5 {[%emt 0:01:02]} 22. g3 {[%emt 0:01:52]} Qc8 {[%emt 0:06:04]} 23. h4 {[%emt 0:01:06]} Bh3 {[%emt 0:02:05]} 24. Bg2 {[%emt 0:01:03]} Bxg2 {[%emt 0:00:49]} 25. Kxg2 {[%emt 0:00:04]} e6 {[%emt 0:02:45]} 26. Qf3 {[%emt 0:01:06]} Nd5 {[%emt 0:00:36]} 27. Bxg7 {[%emt 0:00:49]} Kxg7 {[%emt 0:00:09]} 28. h5 {[%emt 0:00:10]} Qd7 {[%emt 0:02:24]} 29. Rh1 {[%emt 0:03:51]} e5 {[%emt 0:04:34]} 30. Nc2 {[%emt 0:08:02]} Qf5 {[%emt 0:02:29]} 31. Qe2 {[%emt 0:02:47]} Qg5 {[%emt 0:05:10]} 32. Kf1 {[%emt 0:01:22]} Nf6 {[%emt 0:05:15]} 33. h6+ {[%emt 0:03:02]} Kg8 {[%emt 0:03:15]} 34. Ne3 {[%emt 0:01:28]} Ne4 {[%emt 0:04:14]} 35. Ng4 {[%emt 0:05:05]} Nd2+ {[%emt 0:04:39]} 36. Kg2 {[%emt 0:00:49]} e4 {[%emt 0:02:30]} 37. Rhd1 {[%emt 0:02:23]} f5 {[%emt 0:01:34]} 38. Ne3 {[%emt 0:02:06]} f4 {[%emt 0:05:06]} 39. Kg1 {[%emt 0:02:57]} fxe3 {[%emt 0:00:29]} 40. Rxd2 {[%emt 0:05:19]} exd2 {[%emt 0:01:02]} 41. Rd1 {[%emt 0:01:04]} Qd5 {[%emt 0:02:35]} 42. Qg4 {[%emt 0:01:25]} Re8 {[%emt 0:01:28]} 43. Qf4 {[%emt 0:01:55]} Rf8 {[%emt 0:00:00]} 44. Qc7 {[%emt 0:00:41]} Qf7 {[%emt 0:00:31]} 45. Qc5 {[%emt 0:01:00]} Rad8 {[%emt 0:02:46]} 46. Qb6 {[%emt 0:01:54]} Rd3 {[%emt 0:01:52]} 47. Qc5 {[%emt 0:00:29]} e3 {[%emt 0:01:04]} 0-1

[Event "46th OKU-B 2019"]
[Site "Utrecht"]
[Date "2019.06.02"]
[Round "6.8"]
[White "Aguado Garcia, Pablo"]
[Black "Lutz, Chris"]
[Result "1-0"]
[ECO "C44"]
[WhiteElo "1890"]
[BlackElo "1800"]
[Annotator "NA"]
[PlyCount "72"]
[EventDate "2019.05.31"]
[EventType "swiss"]
[EventCountry "NED"]
[SourceTitle "playchess.com"]
[Source "ChessBase"]
[SourceQuality "1"]
[TimeControl "6600+10"]

1. e4 {[%emt 0:00:00]} e5 {[%emt 0:00:00]} 2. Nf3 {[%emt 0:00:00]} Nc6 {[%emt 0:00:00]} 3. c3 {[%emt 0:00:12]} d5 {[%emt 0:00:08]} 4. Qa4 {[%emt 0:00:04]} Bd7 {[%emt 0:00:48]} 5. exd5 {[%emt 0:00:12]} Nd4 {[%emt 0:00:08]} 6. Qd1 {[%emt 0:00:05]} Nxf3+ {[%emt 0:00:17]} 7. Qxf3 {[%emt 0:00:04]} Bd6 {[%emt 0:00:38]} 8. Bc4 {[%emt 0:11:04]} f5 {[%emt 0:00:41]} 9. d3 {[%emt 0:05:14]} Nf6 {[%emt 0:00:23]} 10. Bg5 {[%emt 0:08:09]} O-O {[%emt 0:00:51]} 11. Nd2 {[%emt 0:00:52]} b5 {[%emt 0:01:08]} 12. Bb3 {[%emt 0:00:14]} a5 {[%emt 0:00:22]} 13. O-O {[%emt 0:11:21]} Qe8 {[%emt 0:01:15]} 14. a3 {[%emt 0:10:40]} e4 {[%emt 0:02:07]} 15. dxe4 {[%emt 0:00:54]} fxe4 {[%emt 0:00:11]} 16. Qe2 {[%emt 0:01:56]} Bxh2+ {[%emt 0:09:50]} 17. Kxh2 {[%emt 0:00:04]} Ng4+ {[%emt 0:00:10]} 18. Kg3 {[%emt 0:00:41]} Qh5 {[%emt 0:00:31]} 19. d6+ {[%emt 0:03:07]} Kh8 {[%emt 0:00:10]} 20. Bh4 {[%emt 0:07:39]} Qe5+ {[%emt 0:00:33]} 21. f4 {[%emt 0:01:09]} Qxd6 {[%emt 0:06:12]} 22. Nxe4 {[%emt 0:00:56]} Qg6 {[%emt 0:00:19]} 23. Bg5 {[%emt 0:08:15]} Rae8 {[%emt 0:01:04]} 24. Bc2 {[%emt 0:02:02]} Bf5 {[%emt 0:00:26]} 25. Rae1 {[%emt 0:01:01]} Nf6 {[%emt 0:04:17]} 26. Nd6 {[%emt 0:09:53]} Rxe2 {[%emt 0:02:07]} 27. Bxf5 {[%emt 0:00:03]} Rxe1 {[%emt 0:03:30]} 28. Rxe1 {[%emt 0:01:47]} Nh5+ {[%emt 0:00:26]} 29. Kg4 {[%emt 0:01:37]} Qxd6 {[%emt 0:00:44]} 30. Re5 {[%emt 0:02:57]} Nf6+ {[%emt 0:02:33]} 31. Kh3 {[%emt 0:00:20]} Qd1 {[%emt 0:02:48]} 32. Rxb5 {[%emt 0:01:24]} Qh1+ {[%emt 0:02:39]} 33. Kg3 {[%emt 0:00:07]} Re8 {[%emt 0:01:19]} 34. Re5 {[%emt 0:02:24]} Rxe5 {[%emt 0:00:45]} 35. fxe5 {[%emt 0:00:04]} Qe1+ {[%emt 0:00:35]} 36. Kf4 {[%emt 0:00:05]} Qf2# {[%emt 0:00:28]} 1-0